[Event "*** SCC Grand Prix: Titled Tuesday Blitz"]
[Site "Chess.com"]
[Date "2020.10.13"]
[Round "4"]
[White "ChronicUnhappiness"]
[Black "Aguiar94"]
[Result "0-1"]
[WhiteElo "2355"]
[BlackElo "2593"]
[TimeControl "180+1"]
[EndTime "10:41:01 PDT"]
[Termination "Aguiar94 won on time"]

1. c4 {[%clk 0:02:56.4]} 1... e6 {[%clk 0:02:59.2]} 2. d4 {[%clk 0:02:56]} 2...
Nf6 {[%clk 0:02:58.8]} 3. Nc3 {[%clk 0:02:56.1]} 3... Bb4 {[%clk 0:02:57.9]} 4.
e3 {[%clk 0:02:56.4]} 4... O-O {[%clk 0:02:57.3]} 5. Bd3 {[%clk 0:02:56.7]} 5...
Re8 {[%clk 0:02:53.5]} 6. Nf3 {[%clk 0:02:56.5]} 6... b6 {[%clk 0:02:49.6]} 7.
O-O {[%clk 0:02:55.9]} 7... c5 {[%clk 0:02:48.3]} 8. Bd2 {[%clk 0:02:54]} 8...
Bb7 {[%clk 0:02:46.9]} 9. a3 {[%clk 0:02:54.3]} 9... Ba5 {[%clk 0:02:45.9]} 10.
Rb1 {[%clk 0:02:54.3]} 10... Na6 {[%clk 0:02:45]} 11. dxc5 {[%clk 0:02:14.7]}
11... bxc5 {[%clk 0:02:43.4]} 12. Qc2 {[%clk 0:02:03.6]} 12... d5 {[%clk
0:02:37.2]} 13. Rfd1 {[%clk 0:01:50.4]} 13... d4 {[%clk 0:02:26.1]} 14. Ne4
{[%clk 0:01:44.8]} 14... Nxe4 {[%clk 0:02:21.3]} 15. Bxe4 {[%clk 0:01:29.8]}
15... Bxe4 {[%clk 0:02:20]} 16. Qxe4 {[%clk 0:01:30.7]} 16... Bxd2 {[%clk
0:02:19.2]} 17. Rxd2 {[%clk 0:01:29.1]} 17... e5 {[%clk 0:02:13]} 18. b4 {[%clk
0:01:28.7]} 18... Rb8 {[%clk 0:02:10.6]} 19. b5 {[%clk 0:01:21.5]} 19... Nc7
{[%clk 0:02:08.6]} 20. a4 {[%clk 0:01:16.2]} 20... Qd6 {[%clk 0:02:05.1]} 21. a5
{[%clk 0:01:03.8]} 21... g6 {[%clk 0:01:58.3]} 22. g4 {[%clk 0:01:03]} 22... f6
{[%clk 0:01:55.7]} 23. Rdb2 {[%clk 0:00:50.7]} 23... Na8 {[%clk 0:01:05.2]} 24.
Nd2 {[%clk 0:00:37.5]} 24... Qe6 {[%clk 0:00:55.6]} 25. Qd5 {[%clk 0:00:36.7]}
25... Qxd5 {[%clk 0:00:54.2]} 26. cxd5 {[%clk 0:00:36.4]} 26... Nc7 {[%clk
0:00:42.1]} 27. e4 {[%clk 0:00:34.3]} 27... Red8 {[%clk 0:00:32.6]} 28. Nc4
{[%clk 0:00:32.3]} 28... Rb7 {[%clk 0:00:27.7]} 29. g5 {[%clk 0:00:19.5]} 29...
Kg7 {[%clk 0:00:26.8]} 30. gxf6+ {[%clk 0:00:17.8]} 30... Kxf6 {[%clk
0:00:27.7]} 31. b6 {[%clk 0:00:18.1]} 31... Na6 {[%clk 0:00:25.7]} 32. bxa7
{[%clk 0:00:17.1]} 32... Rxa7 {[%clk 0:00:26.4]} 33. Rb6+ {[%clk 0:00:16.2]}
33... Kg5 {[%clk 0:00:26.9]} 34. Nxe5 {[%clk 0:00:14.7]} 34... Rf8 {[%clk
0:00:22]} 35. d6 {[%clk 0:00:11.1]} 35... Kf4 {[%clk 0:00:20.6]} 36. Nc6 {[%clk
0:00:09.6]} 36... Raa8 {[%clk 0:00:20.7]} 37. d7 {[%clk 0:00:07.5]} 37... Nc7
{[%clk 0:00:20.7]} 38. d8=Q {[%clk 0:00:07.4]} 38... Raxd8 {[%clk 0:00:20.6]}
39. Nxd8 {[%clk 0:00:08.3]} 39... Rxd8 {[%clk 0:00:20.7]} 40. a6 {[%clk
0:00:09.2]} 40... Ra8 {[%clk 0:00:19.1]} 41. Ra1 {[%clk 0:00:09]} 41... d3
{[%clk 0:00:19]} 42. a7 {[%clk 0:00:09.2]} 42... c4 {[%clk 0:00:18.1]} 43. Rc6
{[%clk 0:00:08.2]} 43... Nb5 {[%clk 0:00:16.8]} 44. Rxc4 {[%clk 0:00:08]} 44...
Rxa7 {[%clk 0:00:17]} 45. Rxa7 {[%clk 0:00:06.9]} 45... Nxa7 {[%clk 0:00:17.3]}
46. Rd4 {[%clk 0:00:06.1]} 46... Nc6 {[%clk 0:00:15]} 47. Rxd3 {[%clk
0:00:06.2]} 47... Ne5 {[%clk 0:00:13.7]} 48. Ra3 {[%clk 0:00:04.3]} 48... Kxe4
{[%clk 0:00:12.6]} 49. Kg2 {[%clk 0:00:04.5]} 49... g5 {[%clk 0:00:11.9]} 50.
f3+ {[%clk 0:00:05.1]} 50... Kf5 {[%clk 0:00:11.3]} 51. Ra5 {[%clk 0:00:05.7]}
51... Kf6 {[%clk 0:00:11.3]} 52. Kf2 {[%clk 0:00:05.9]} 52... h5 {[%clk
0:00:11.6]} 53. Rb5 {[%clk 0:00:05.9]} 53... Nd3+ {[%clk 0:00:09.7]} 54. Ke3
{[%clk 0:00:06]} 54... Nf4 {[%clk 0:00:08.2]} 55. Ke4 {[%clk 0:00:05.9]} 55...
Ne2 {[%clk 0:00:06.1]} 56. Rb6+ {[%clk 0:00:05.2]} 56... Kf7 {[%clk 0:00:05.6]}
57. Ke5 {[%clk 0:00:04.2]} 57... Ng1 {[%clk 0:00:03.4]} 58. Rb3 {[%clk
0:00:02.6]} 58... Nh3 {[%clk 0:00:02.7]} 59. Kf5 {[%clk 0:00:02]} 59... Ke7
{[%clk 0:00:01.7]} 60. Rb6 {[%clk 0:00:01.6]} 60... Kf7 {[%clk 0:00:01.3]} 61.
Rh6 {[%clk 0:00:01.1]} 61... h4 {[%clk 0:00:01.9]} 0-1

[Event "*** SCC Grand Prix: Titled Tuesday Blitz"]
[Site "Chess.com"]
[Date "2020.10.13"]
[Round "4"]
[White "NMZanette"]
[Black "SanchezKelvin"]
[Result "1-0"]
[WhiteElo "2247"]
[BlackElo "2392"]
[TimeControl "180+1"]
[EndTime "10:41:04 PDT"]
[Termination "NMZanette won on time"]

1. e4 {[%clk 0:03:00.9]} 1... c5 {[%clk 0:02:54.3]} 2. Nf3 {[%clk 0:03:00.5]}
2... d6 {[%clk 0:02:53.9]} 3. d4 {[%clk 0:03:00.4]} 3... cxd4 {[%clk 0:02:54]}
4. Nxd4 {[%clk 0:03:01.1]} 4... Nf6 {[%clk 0:02:54.1]} 5. f3 {[%clk 0:03:01.2]}
5... e5 {[%clk 0:02:53.3]} 6. Nb3 {[%clk 0:03:01.5]} 6... a5 {[%clk 0:02:53]} 7.
a4 {[%clk 0:03:00.5]} 7... Nc6 {[%clk 0:02:47.5]} 8. c4 {[%clk 0:02:58.1]} 8...
Be7 {[%clk 0:02:36.8]} 9. Be3 {[%clk 0:02:55.8]} 9... O-O {[%clk 0:02:36.1]} 10.
Be2 {[%clk 0:02:54.6]} 10... Nh5 {[%clk 0:02:34]} 11. O-O {[%clk 0:02:50.4]}
11... Bg5 {[%clk 0:02:29.4]} 12. Bf2 {[%clk 0:02:50]} 12... Nf4 {[%clk
0:02:29.1]} 13. Nc3 {[%clk 0:02:47.3]} 13... Nb4 {[%clk 0:02:08.7]} 14. Nb5
{[%clk 0:02:37.1]} 14... Ra6 {[%clk 0:02:00.4]} 15. Re1 {[%clk 0:02:17.5]} 15...
Be6 {[%clk 0:01:52.3]} 16. Bf1 {[%clk 0:02:16.4]} 16... Rc6 {[%clk 0:01:47.4]}
17. Na7 {[%clk 0:01:52.3]} 17... Rxc4 {[%clk 0:01:31.3]} 18. Bxc4 {[%clk
0:01:50.9]} 18... Bxc4 {[%clk 0:01:32.2]} 19. Nb5 {[%clk 0:01:50.4]} 19... Nfd3
{[%clk 0:01:28.3]} 20. Re2 {[%clk 0:01:47.6]} 20... Nxf2 {[%clk 0:01:16.6]} 21.
Rxf2 {[%clk 0:01:43.4]} 21... Be3 {[%clk 0:01:16.2]} 22. Nd2 {[%clk 0:01:24.8]}
22... Bxf2+ {[%clk 0:00:44.4]} 23. Kxf2 {[%clk 0:01:22.6]} 23... Qb6+ {[%clk
0:00:44.2]} 24. Kg3 {[%clk 0:01:22.5]} 24... Be6 {[%clk 0:00:39.1]} 25. Nf1
{[%clk 0:01:12.6]} 25... d5 {[%clk 0:00:34.3]} 26. exd5 {[%clk 0:01:02.6]} 26...
Nxd5 {[%clk 0:00:33.7]} 27. h3 {[%clk 0:00:55.1]} 27... Rd8 {[%clk 0:00:24.1]}
28. Qe1 {[%clk 0:00:49.3]} 28... f6 {[%clk 0:00:20.1]} 29. Rd1 {[%clk 0:00:48]}
29... Bf7 {[%clk 0:00:20]} 30. Kh2 {[%clk 0:00:38.6]} 30... Nf4 {[%clk 0:00:19]}
31. Rxd8+ {[%clk 0:00:37.5]} 31... Qxd8 {[%clk 0:00:19.9]} 32. Qd2 {[%clk
0:00:36.7]} 32... Qxd2 {[%clk 0:00:19.1]} 33. Nxd2 {[%clk 0:00:36.9]} 33... Nd3
{[%clk 0:00:18.8]} 34. b3 {[%clk 0:00:34.8]} 34... Bd5 {[%clk 0:00:17.7]} 35.
Nc3 {[%clk 0:00:34.5]} 35... Bc6 {[%clk 0:00:17.4]} 36. Kg3 {[%clk 0:00:33.8]}
36... Nc5 {[%clk 0:00:17]} 37. Kf2 {[%clk 0:00:30.9]} 37... Kf7 {[%clk
0:00:16.8]} 38. Ke3 {[%clk 0:00:31.4]} 38... Ke6 {[%clk 0:00:15.9]} 39. g4
{[%clk 0:00:31.9]} 39... g6 {[%clk 0:00:15.7]} 40. f4 {[%clk 0:00:32.1]} 40...
exf4+ {[%clk 0:00:15.4]} 41. Kxf4 {[%clk 0:00:32.6]} 41... Nd3+ {[%clk
0:00:15.6]} 42. Ke3 {[%clk 0:00:32.7]} 42... Ne5 {[%clk 0:00:15.2]} 43. Kd4
{[%clk 0:00:32.4]} 43... Nf3+ {[%clk 0:00:13.1]} 44. Nxf3 {[%clk 0:00:32.6]}
44... Bxf3 {[%clk 0:00:14]} 45. Ke3 {[%clk 0:00:32.9]} 45... Bg2 {[%clk
0:00:13.6]} 46. h4 {[%clk 0:00:32.7]} 46... f5 {[%clk 0:00:12.4]} 47. g5 {[%clk
0:00:31.8]} 47... Ke5 {[%clk 0:00:12.1]} 48. Ne2 {[%clk 0:00:31.8]} 48... Bc6
{[%clk 0:00:10.8]} 49. Nf4 {[%clk 0:00:29.9]} 49... Bd5 {[%clk 0:00:10.4]} 50.
Nd3+ {[%clk 0:00:28.5]} 50... Kd6 {[%clk 0:00:09.8]} 51. b4 {[%clk 0:00:28.7]}
51... axb4 {[%clk 0:00:09.5]} 52. Nxb4 {[%clk 0:00:28.9]} 52... Be4 {[%clk
0:00:09.5]} 53. Kd4 {[%clk 0:00:28.2]} 53... Bc6 {[%clk 0:00:07]} 54. a5 {[%clk
0:00:27.2]} 54... Bb5 {[%clk 0:00:06.7]} 55. Nd5 {[%clk 0:00:26.3]} 55... Bc6
{[%clk 0:00:06.8]} 56. Nf6 {[%clk 0:00:26.4]} 56... Ke6 {[%clk 0:00:03.7]} 57.
Nxh7 {[%clk 0:00:26.1]} 57... f4 {[%clk 0:00:04]} 58. Nf6 {[%clk 0:00:26.3]}
58... Kf5 {[%clk 0:00:04]} 59. Kd3 {[%clk 0:00:21.8]} 59... Ke5 {[%clk
0:00:03.1]} 60. Ng4+ {[%clk 0:00:19.7]} 60... Kf5 {[%clk 0:00:02.2]} 61. Nf6
{[%clk 0:00:19.8]} 61... Bb5+ {[%clk 0:00:01.2]} 62. Kd2 {[%clk 0:00:19.3]}
62... f3 {[%clk 0:00:01.4]} 63. Ke3 {[%clk 0:00:19.3]} 63... Bc6 {[%clk
0:00:02.3]} 64. Kf2 {[%clk 0:00:18.9]} 64... Kf4 {[%clk 0:00:02.6]} 65. Nh7
{[%clk 0:00:16.1]} 65... Kg4 {[%clk 0:00:02.5]} 66. Nf8 {[%clk 0:00:15.6]} 66...
Kh5 {[%clk 0:00:02.9]} 67. Ne6 {[%clk 0:00:14.9]} 67... Be4 {[%clk 0:00:01.8]}
68. Nd4 {[%clk 0:00:14.5]} 68... Kxh4 {[%clk 0:00:02.2]} 69. Ne6 {[%clk
0:00:13.6]} 69... Kg4 {[%clk 0:00:02.7]} 70. Ke3 {[%clk 0:00:13.3]} 70... Bc6
{[%clk 0:00:03.5]} 71. Kf2 {[%clk 0:00:12.5]} 71... Kf5 {[%clk 0:00:03.9]} 72.
Nd4+ {[%clk 0:00:13]} 72... Kxg5 {[%clk 0:00:04.2]} 73. Nxc6 {[%clk 0:00:13.9]}
73... b6 {[%clk 0:00:04.3]} 74. axb6 {[%clk 0:00:14]} 1-0

[Event "*** SCC Grand Prix: Titled Tuesday Blitz"]
[Site "Chess.com"]
[Date "2020.10.13"]
[Round "4"]
[White "draksbg"]
[Black "hungrycaterpillar4"]
[Result "0-1"]
[WhiteElo "2520"]
[BlackElo "2694"]
[TimeControl "180+1"]
[EndTime "10:41:06 PDT"]
[Termination "hungrycaterpillar4 won by resignation"]

1. e4 {[%clk 0:02:59]} 1... c5 {[%clk 0:02:59.4]} 2. Nf3 {[%clk 0:02:57.1]} 2...
Nc6 {[%clk 0:03:00]} 3. d4 {[%clk 0:02:56.7]} 3... cxd4 {[%clk 0:03:00.9]} 4.
Nxd4 {[%clk 0:02:57.1]} 4... Nf6 {[%clk 0:02:56.2]} 5. Nc3 {[%clk 0:02:56.8]}
5... e5 {[%clk 0:02:56.8]} 6. Ndb5 {[%clk 0:02:56.3]} 6... d6 {[%clk 0:02:57.2]}
7. a4 {[%clk 0:02:56.3]} 7... a6 {[%clk 0:02:53.2]} 8. Na3 {[%clk 0:02:55.5]}
8... Be6 {[%clk 0:02:53.8]} 9. Bc4 {[%clk 0:02:52.8]} 9... Rc8 {[%clk
0:02:39.4]} 10. O-O {[%clk 0:02:50.1]} 10... Be7 {[%clk 0:02:33.6]} 11. Bg5
{[%clk 0:02:37.8]} 11... O-O {[%clk 0:02:32.6]} 12. Bxf6 {[%clk 0:02:32.6]}
12... Bxf6 {[%clk 0:02:33.5]} 13. Nd5 {[%clk 0:02:33.5]} 13... Bg5 {[%clk
0:02:31.1]} 14. c3 {[%clk 0:02:28.3]} 14... Kh8 {[%clk 0:02:22.9]} 15. Nc2
{[%clk 0:02:26.4]} 15... f5 {[%clk 0:02:19.7]} 16. exf5 {[%clk 0:02:25.9]} 16...
Bxf5 {[%clk 0:02:19.1]} 17. Nce3 {[%clk 0:02:26.5]} 17... Be6 {[%clk 0:02:16.2]}
18. Qe2 {[%clk 0:02:19.5]} 18... Ne7 {[%clk 0:02:09.5]} 19. Nxe7 {[%clk
0:02:16.6]} 19... Qxe7 {[%clk 0:01:58.5]} 20. Bxe6 {[%clk 0:02:13.8]} 20... Qxe6
{[%clk 0:01:58.7]} 21. Rad1 {[%clk 0:02:13.7]} 21... Bxe3 {[%clk 0:01:57.9]} 22.
Qxe3 {[%clk 0:02:12]} 22... Rc6 {[%clk 0:01:55.4]} 23. Rd2 {[%clk 0:02:10.3]}
23... Rf4 {[%clk 0:01:53.2]} 24. a5 {[%clk 0:02:07.9]} 24... h6 {[%clk
0:01:50.8]} 25. Re1 {[%clk 0:02:07.7]} 25... Qb3 {[%clk 0:01:45.7]} 26. Red1
{[%clk 0:02:06.8]} 26... Rf6 {[%clk 0:01:40.2]} 27. g3 {[%clk 0:02:02.8]} 27...
Qb5 {[%clk 0:01:39.2]} 28. b4 {[%clk 0:01:45.8]} 28... Qc4 {[%clk 0:01:34.9]}
29. Rd3 {[%clk 0:01:43.5]} 29... e4 {[%clk 0:01:31.4]} 30. Rd4 {[%clk
0:01:43.1]} 30... Qxc3 {[%clk 0:01:31.9]} 31. Qxe4 {[%clk 0:01:43.4]} 31... Qc2
{[%clk 0:01:23.5]} 32. Qe8+ {[%clk 0:01:41.2]} 32... Kh7 {[%clk 0:01:23.2]} 33.
R4d2 {[%clk 0:01:41.6]} 33... Qf5 {[%clk 0:01:21]} 34. Qe7 {[%clk 0:01:38.1]}
34... Rf7 {[%clk 0:01:19.5]} 35. Qe3 {[%clk 0:01:37.4]} 35... Rc2 {[%clk
0:01:17.5]} 36. Rxc2 {[%clk 0:01:37.6]} 36... Qxc2 {[%clk 0:01:18.4]} 37. Rd2
{[%clk 0:01:38]} 37... Qg6 {[%clk 0:01:16.4]} 38. h4 {[%clk 0:01:36.6]} 38...
Qb1+ {[%clk 0:01:13.9]} 39. Kg2 {[%clk 0:01:36.6]} 39... Qxb4 {[%clk 0:01:14.4]}
40. Qd3+ {[%clk 0:01:34.4]} 40... Kg8 {[%clk 0:01:14.7]} 41. Qxd6 {[%clk
0:01:34.3]} 41... Qxd6 {[%clk 0:01:14.6]} 42. Rxd6 {[%clk 0:01:35.2]} 42... h5
{[%clk 0:00:57]} 43. f4 {[%clk 0:01:33.3]} 43... Kh7 {[%clk 0:00:54.6]} 44. Rd5
{[%clk 0:01:31.6]} 44... g6 {[%clk 0:00:53.9]} 45. Kf3 {[%clk 0:01:31.4]} 45...
Kg7 {[%clk 0:00:52.4]} 46. Ke4 {[%clk 0:01:29.3]} 46... Rc7 {[%clk 0:00:51.2]}
47. Kd4 {[%clk 0:01:27.6]} 47... Kf6 {[%clk 0:00:51]} 48. Rc5 {[%clk 0:01:13.2]}
48... Rd7+ {[%clk 0:00:43.6]} 49. Kc4 {[%clk 0:01:13.3]} 49... Rd2 {[%clk
0:00:38.3]} 50. Rg5 {[%clk 0:01:12.5]} 50... Rb2 {[%clk 0:00:34.1]} 51. f5
{[%clk 0:01:05.9]} 51... gxf5 {[%clk 0:00:28.4]} 52. Rxh5 {[%clk 0:01:06]} 52...
Rb5 {[%clk 0:00:27.5]} 53. Rh6+ {[%clk 0:01:06.6]} 53... Ke5 {[%clk 0:00:27.9]}
54. Rb6 {[%clk 0:01:03.8]} 54... Rxa5 {[%clk 0:00:12.8]} 55. Rxb7 {[%clk
0:01:04]} 55... Ra4+ {[%clk 0:00:13.1]} 56. Kc5 {[%clk 0:01:03.8]} 56... Rg4
{[%clk 0:00:12.7]} 57. h5 {[%clk 0:01:04.3]} 57... Rxg3 {[%clk 0:00:12.8]} 58.
h6 {[%clk 0:01:05.1]} 58... Rc3+ {[%clk 0:00:12.9]} 59. Kb6 {[%clk 0:01:05.1]}
59... Rh3 {[%clk 0:00:13.8]} 60. h7 {[%clk 0:01:05.7]} 60... Kf6 {[%clk
0:00:13]} 61. Kxa6 {[%clk 0:01:04.2]} 61... Kg6 {[%clk 0:00:13.4]} 62. Kb5
{[%clk 0:01:02.6]} 62... Rxh7 {[%clk 0:00:13.7]} 63. Rb6+ {[%clk 0:00:42.3]}
63... Kg5 {[%clk 0:00:13.5]} 64. Kc4 {[%clk 0:00:43.2]} 64... Rd7 {[%clk
0:00:13.7]} 65. Rb1 {[%clk 0:00:40.3]} 65... f4 {[%clk 0:00:14.1]} 66. Rg1+
{[%clk 0:00:39.6]} 66... Kh4 {[%clk 0:00:14.7]} 67. Rg8 {[%clk 0:00:40.5]} 67...
f3 {[%clk 0:00:14.7]} 68. Rh8+ {[%clk 0:00:41]} 68... Kg3 {[%clk 0:00:15.1]} 69.
Rg8+ {[%clk 0:00:41.3]} 69... Kh2 {[%clk 0:00:15.1]} 70. Rh8+ {[%clk 0:00:41.8]}
70... Kg2 {[%clk 0:00:15.6]} 71. Rg8+ {[%clk 0:00:42.6]} 71... Kf1 {[%clk
0:00:16]} 72. Rh8 {[%clk 0:00:42]} 72... f2 {[%clk 0:00:15.7]} 73. Rg8 {[%clk
0:00:42.3]} 73... Re7 {[%clk 0:00:12.5]} 74. Kd3 {[%clk 0:00:42.1]} 74... Ke1
{[%clk 0:00:12]} 75. Ra8 {[%clk 0:00:39]} 75... f1=Q+ {[%clk 0:00:11.2]} 0-1

[Event "*** SCC Grand Prix: Titled Tuesday Blitz"]
[Site "Chess.com"]
[Date "2020.10.13"]
[Round "4"]
[White "crescentmoon2411"]
[Black "davidkalashian"]
[Result "1/2-1/2"]
[WhiteElo "2800"]
[BlackElo "2575"]
[TimeControl "180+1"]
[EndTime "10:41:28 PDT"]
[Termination "Game drawn by stalemate"]

1. e4 {[%clk 0:03:00.9]} 1... c6 {[%clk 0:02:59.6]} 2. d4 {[%clk 0:02:58.6]}
2... g6 {[%clk 0:03:00]} 3. Nc3 {[%clk 0:02:55.6]} 3... Bg7 {[%clk 0:03:00.4]}
4. f4 {[%clk 0:02:46.4]} 4... d5 {[%clk 0:03:00.2]} 5. e5 {[%clk 0:02:46.6]}
5... h5 {[%clk 0:03:00.5]} 6. Be3 {[%clk 0:02:33.8]} 6... Nh6 {[%clk 0:03:00.5]}
7. h3 {[%clk 0:02:27.5]} 7... Bf5 {[%clk 0:02:58.3]} 8. Nf3 {[%clk 0:02:22.3]}
8... e6 {[%clk 0:02:48.9]} 9. Qd2 {[%clk 0:02:16.8]} 9... b5 {[%clk 0:02:39]}
10. Bd3 {[%clk 0:02:11]} 10... Nd7 {[%clk 0:02:36.9]} 11. O-O {[%clk 0:01:56.3]}
11... a5 {[%clk 0:02:35.5]} 12. Ne2 {[%clk 0:01:52.3]} 12... Nb6 {[%clk
0:02:31.7]} 13. b3 {[%clk 0:01:48.9]} 13... a4 {[%clk 0:02:20.1]} 14. Ng5 {[%clk
0:01:43.1]} 14... Bxd3 {[%clk 0:02:17.4]} 15. Qxd3 {[%clk 0:01:42.9]} 15... Nf5
{[%clk 0:02:14.8]} 16. Bf2 {[%clk 0:01:38.1]} 16... Bh6 {[%clk 0:02:07.9]} 17.
Nf3 {[%clk 0:01:34.5]} 17... h4 {[%clk 0:02:04.7]} 18. Qc3 {[%clk 0:01:17.9]}
18... Rc8 {[%clk 0:01:58.8]} 19. Nh2 {[%clk 0:01:03.3]} 19... Bf8 {[%clk
0:01:50.8]} 20. Ng4 {[%clk 0:00:59.5]} 20... Be7 {[%clk 0:01:50.9]} 21. b4
{[%clk 0:00:54.3]} 21... a3 {[%clk 0:01:28.7]} 22. Qxa3 {[%clk 0:00:53]} 22...
Ra8 {[%clk 0:01:28.7]} 23. Qc3 {[%clk 0:00:50.4]} 23... Nc4 {[%clk 0:01:24.4]}
24. a3 {[%clk 0:00:48.7]} 24... O-O {[%clk 0:01:23.1]} 25. Kh2 {[%clk
0:00:43.9]} 25... Ra4 {[%clk 0:01:21.7]} 26. Ng1 {[%clk 0:00:41.3]} 26... Qa8
{[%clk 0:01:04.1]} 27. Nf3 {[%clk 0:00:41.3]} 27... Rxa3 {[%clk 0:01:03.4]} 28.
Rxa3 {[%clk 0:00:41]} 28... Qxa3 {[%clk 0:00:58.3]} 29. Qxa3 {[%clk 0:00:41.2]}
29... Nxa3 {[%clk 0:00:59.2]} 30. c3 {[%clk 0:00:41.7]} 30... Ra8 {[%clk
0:00:54.2]} 31. Ra1 {[%clk 0:00:40.7]} 31... Ra4 {[%clk 0:00:53.3]} 32. Nd2
{[%clk 0:00:24]} 32... Nc4 {[%clk 0:00:45.4]} 33. Nb3 {[%clk 0:00:23.2]} 33...
Kg7 {[%clk 0:00:32.9]} 34. Kg1 {[%clk 0:00:17.7]} 34... g5 {[%clk 0:00:27.5]}
35. fxg5 {[%clk 0:00:16.6]} 35... Bxg5 {[%clk 0:00:28.4]} 36. Be1 {[%clk
0:00:14.5]} 36... Nfe3 {[%clk 0:00:23.6]} 37. Nxe3 {[%clk 0:00:13.2]} 37...
Bxe3+ {[%clk 0:00:24.5]} 38. Kf1 {[%clk 0:00:12.6]} 38... Bg5 {[%clk 0:00:13.5]}
39. Ke2 {[%clk 0:00:12.1]} 39... f6 {[%clk 0:00:13.2]} 40. exf6+ {[%clk
0:00:11.6]} 40... Bxf6 {[%clk 0:00:14.1]} 41. Kd3 {[%clk 0:00:09.8]} 41... Kg6
{[%clk 0:00:12.4]} 42. Bf2 {[%clk 0:00:08.4]} 42... Kf5 {[%clk 0:00:11.9]} 43.
Rf1 {[%clk 0:00:06.2]} 43... Kg6 {[%clk 0:00:09]} 44. Ra1 {[%clk 0:00:03.9]}
44... Kf5 {[%clk 0:00:08.5]} 45. Kc2 {[%clk 0:00:03.7]} 45... Rxa1 {[%clk
0:00:06.7]} 46. Nxa1 {[%clk 0:00:03.5]} 46... Ke4 {[%clk 0:00:07.6]} 47. Nb3
{[%clk 0:00:04.2]} 47... e5 {[%clk 0:00:07.8]} 48. Nc5+ {[%clk 0:00:04.3]} 48...
Kf5 {[%clk 0:00:06.4]} 49. dxe5 {[%clk 0:00:04.7]} 49... Nxe5 {[%clk 0:00:05]}
50. Nb3 {[%clk 0:00:04.7]} 50... Nc4 {[%clk 0:00:04.6]} 51. Nd4+ {[%clk
0:00:04.7]} 51... Bxd4 {[%clk 0:00:03.8]} 52. cxd4 {[%clk 0:00:03.2]} 52... Ke4
{[%clk 0:00:02.3]} 53. Bxh4 {[%clk 0:00:03.3]} 53... Ne3+ {[%clk 0:00:02.4]} 54.
Kd2 {[%clk 0:00:02.8]} 54... Nxg2 {[%clk 0:00:02.5]} 55. Bf6 {[%clk 0:00:03.1]}
55... Nf4 {[%clk 0:00:02.2]} 56. h4 {[%clk 0:00:03.2]} 56... Ne6 {[%clk
0:00:01.6]} 57. Be5 {[%clk 0:00:03.3]} 57... Nf8 {[%clk 0:00:02.5]} 58. h5
{[%clk 0:00:03.4]} 58... Nh7 {[%clk 0:00:03.4]} 59. h6 {[%clk 0:00:03.7]} 59...
Ng5 {[%clk 0:00:03.3]} 60. Ke2 {[%clk 0:00:04.2]} 60... Nh7 {[%clk 0:00:04.2]}
61. Kf2 {[%clk 0:00:04.5]} 61... Kf5 {[%clk 0:00:04.1]} 62. Kg3 {[%clk
0:00:04.2]} 62... Kg5 {[%clk 0:00:03.6]} 63. Bg7 {[%clk 0:00:04.2]} 63... Kf5
{[%clk 0:00:04.5]} 64. Kh4 {[%clk 0:00:04.3]} 64... Ng5 {[%clk 0:00:03.5]} 65.
Kh5 {[%clk 0:00:04.7]} 65... Nh7 {[%clk 0:00:04.1]} 66. Be5 {[%clk 0:00:04.5]}
66... Ng5 {[%clk 0:00:03.5]} 67. Bd6 {[%clk 0:00:04.6]} 67... Nh7 {[%clk
0:00:04.4]} 68. Be7 {[%clk 0:00:04.7]} 68... Ke6 {[%clk 0:00:03.2]} 69. Bd8
{[%clk 0:00:03.1]} 69... Kf5 {[%clk 0:00:03.4]} 70. Bh4 {[%clk 0:00:02.9]} 70...
Nf8 {[%clk 0:00:03.2]} 71. Be7 {[%clk 0:00:02.7]} 71... Nh7 {[%clk 0:00:03.4]}
72. Bd8 {[%clk 0:00:03]} 72... Nf8 {[%clk 0:00:02.4]} 73. Bg5 {[%clk 0:00:03.2]}
73... Nh7 {[%clk 0:00:03.3]} 74. Be7 {[%clk 0:00:03.6]} 74... Ke6 {[%clk
0:00:03.3]} 75. Kg6 {[%clk 0:00:03.9]} 75... Kxe7 {[%clk 0:00:03.3]} 76. Kxh7
{[%clk 0:00:04.4]} 76... Kf7 {[%clk 0:00:04.2]} 77. Kh8 {[%clk 0:00:04.8]} 77...
Kf8 {[%clk 0:00:04.4]} 78. h7 {[%clk 0:00:04.9]} 78... Kf7 {[%clk 0:00:05.3]}
1/2-1/2